[Event "RUS-chT Blitz Women 2018"]
[Site "Sochi"]
[Date "2018.10.10"]
[Round "13"]
[White "Soboleva, Anastasia"]
[Black "Mamontova, Anastasia"]
[Result "1-0"]
[ECO "B13"]
[WhiteElo "1769"]
[BlackElo "2009"]
[Annotator "NA RC"]
[PlyCount "83"]
[EventDate "2018.10.10"]
[EventType "swiss"]
[EventCountry "RUS"]
[SourceTitle "playchess.com"]
[Source "ChessBase"]
[SourceQuality "1"]
[TimeControl "180+2"]

1. e4 {[%emt 0:00:00]} c6 {[%emt 0:00:00]} 2. d4 {[%emt 0:00:00]} d5 {[%emt 0:00:01]} 3. exd5 {[%emt 0:00:01]} cxd5 {[%emt 0:00:01]} 4. Bd3 {[%emt 0:00:00]} Nc6 {[%emt 0:00:01]} 5. c3 {[%emt 0:00:02]} Nf6 6. h3 Qc7 {[%emt 0:00:28]} 7. Nf3 {[%emt 0:00:02]} e5 {[%emt 0:00:17]} 8. dxe5 {[%emt 0:00:07]} Nxe5 {[%emt 0:00:03]} 9. Qe2 {[%emt 0:01:19]} Ne4 {[%emt 0:00:46]} 10. Nxe5 {[%emt 0:00:44]} Qxe5 {[%emt 0:00:02]} 11. f3 {[%emt 0:00:01]} Qg3+ {[%emt 0:01:15]} 12. Kd1 {[%emt 0:00:00]} f5 {[%emt 0:00:05]} 13. fxe4 {[%emt 0:00:02]} dxe4 {[%emt 0:00:02]} 14. Bb5+ {[%emt 0:00:02]} Kf7 {[%emt 0:00:03]} 15. Qc4+ {[%emt 0:00:03]} Be6 {[%emt 0:00:02]} 16. Qe2 {[%emt 0:00:14]} Rd8+ {[%emt 0:00:09]} 17. Kc2 {[%emt 0:00:04]} Be7 {[%emt 0:00:09]} 18. Rf1 {[%emt 0:00:06]} g6 {[%emt 0:00:02]} 19. Bf4 {[%emt 0:00:05]} Qh4 {[%emt 0:00:02]} 20. Be5 {[%emt 0:00:02]} Rhf8 {[%emt 0:00:03]} 21. Nd2 {[%emt 0:00:04]} Qg5 {[%emt 0:00:04]} 22. Bf4 {[%emt 0:00:01]} Qf6 {[%emt 0:00:01]} 23. Rad1 {[%emt 0:00:03]} a6 {[%emt 0:00:02]} 24. Bc4 {[%emt 0:00:01]} b5 {[%emt 0:00:01]} 25. Bxe6+ {[%emt 0:00:01]} Qxe6 {[%emt 0:00:01]} 26. Kb1 {[%emt 0:00:01]} g5 {[%emt 0:00:03]} 27. Bc7 {[%emt 0:00:13]} Rd7 {[%emt 0:00:03]} 28. Ba5 {[%emt 0:00:04]} Kg8 {[%emt 0:00:01]} 29. Nb3 {[%emt 0:00:03]} Rxd1+ {[%emt 0:00:03]} 30. Rxd1 {[%emt 0:00:01]} f4 {[%emt 0:00:01]} 31. Nd4 {[%emt 0:00:03]} Qf6 {[%emt 0:00:02]} 32. c4 {[%emt 0:00:05]} bxc4 {[%emt 0:00:01]} 33. Qxc4+ {[%emt 0:00:01]} Kh8 {[%emt 0:00:03]} 34. Ne6 {[%emt 0:00:03]} Re8 {[%emt 0:00:03]} 35. Bc3 {[%emt 0:00:01]} e3 {[%emt 0:00:04]} 36. Bxf6+ {[%emt 0:00:01]} Bxf6 {[%emt 0:00:01]} 37. Re1 {[%emt 0:00:05]} Rb8 {[%emt 0:00:01]} 38. b3 {[%emt 0:00:02]} Re8 {[%emt 0:00:02]} 39. h4 {[%emt 0:00:04]} h6 {[%emt 0:00:01]} 40. hxg5 {[%emt 0:00:02]} Bxg5 {[%emt 0:00:03]} 41. Qd4+ {[%emt 0:00:02]} Kh7 {[%emt 0:00:01]} 42. Qg7# {[%emt 0:00:02]} 1-0